{"text_format":"1","workbook":"xlsx","n_sheets":3,"sheets":["ETIM_Exceltabelle","Tabelle2","Tabelle3"],"not_rendered":{"charts":0,"images":0,"macros":1,"external_links":0,"defined_names":0,"comments":0,"pivot_tables":0},"unopened":[],"bounds":{"document_bytes":16777216,"sheet_cells":100000,"rows_first":2000,"rows_last":500,"rows_between":2000,"halvings":0,"cell_chars":16384,"cell_head_chars":4096},"cells_cut":0,"cells_raw":0,"read":"whole","date_system":"1900"}

{"sheet":"ETIM_Exceltabelle","index":0,"n_rows":60,"n_cols":3,"rows_kept":60,"cut":false,"hidden":false,"merged":[]}
["ArtNr","Original ArtikelText","HTML Text"]
[123242,"Der GS Handhubwagen mit einer Tragfähigkeit von 2.500 Kg ist als Einstiegsmodell besonders einfach zu bedienen und zeichnet sich durch seine Robustheit und Zuverlässigkeit aus.\nDas ideale Werkzeug für den manuellen Transport von Paletten im täglichen Einsatz. Erhältlich in den Gabellängen 800 mm und 1.150 mm.",{"$f":"RangeHTML(B2)","v":"<p>Der GS Handhubwagen mit einer Tragfähigkeit von 2.500 Kg ist als Einstiegsmodell besonders einfach zu bedienen und zeichnet sich durch seine Robustheit und Zuverlässigkeit aus.<br>Das ideale Werkzeug für den manuellen Transport von Paletten im täglichen Einsatz. Erhältlich in den Gabellängen 800 mm und 1.150 mm.</p>"}]
[123243,"Beispiel 1",{"$f":"RangeHTML(B3)","v":"<p>Beispiel 1</p>"}]
[123244,"Beispiel 2",{"$f":"RangeHTML(B4)","v":"<p>Beispiel 2</p>"}]
[123245,"Beispiel 3",{"$f":"RangeHTML(B5)","v":"<p>Beispiel 3</p>"}]
[123246,"Beispiel 4",{"$f":"RangeHTML(B6)","v":"<p>Beispiel 4</p>"}]
[123247,"Beispiel 5",{"$f":"RangeHTML(B7)","v":"<p>Beispiel 5</p>"}]
[123248,"Beispiel 6",{"$f":"RangeHTML(B8)","v":"<p>Beispiel 6</p>"}]
[123249,"Beispiel 7",{"$f":"RangeHTML(B9)","v":"<p>Beispiel 7</p>"}]
[123250,"Beispiel 8",{"$f":"RangeHTML(B10)","v":"<p>Beispiel 8</p>"}]
[123251,"Beispiel 9",{"$f":"RangeHTML(B11)","v":"<p>Beispiel 9</p>"}]
[123252,"Beispiel 10",{"$f":"RangeHTML(B12)","v":"<p>Beispiel 10</p>"}]
[123253,"Beispiel 11",{"$f":"RangeHTML(B13)","v":"<p>Beispiel 11</p>"}]
[123254,"Beispiel 12",{"$f":"RangeHTML(B14)","v":"<p>Beispiel 12</p>"}]
[123255,"Beispiel 13",{"$f":"RangeHTML(B15)","v":"<p>Beispiel 13</p>"}]
[123256,"Beispiel 14",{"$f":"RangeHTML(B16)","v":"<p>Beispiel 14</p>"}]
[123257,"Beispiel 15",{"$f":"RangeHTML(B17)","v":"<p>Beispiel 15</p>"}]
[123258,"Beispiel 16",{"$f":"RangeHTML(B18)","v":"<p>Beispiel 16</p>"}]
[123259,"Beispiel 17",{"$f":"RangeHTML(B19)","v":"<p>Beispiel 17</p>"}]
[123260,"Beispiel 18",{"$f":"RangeHTML(B20)","v":"<p>Beispiel 18</p>"}]
[123261,"Beispiel 19",{"$f":"RangeHTML(B21)","v":"<p>Beispiel 19</p>"}]
[123262,"Beispiel 20",{"$f":"RangeHTML(B22)","v":"<p>Beispiel 20</p>"}]
[123263,"Beispiel 21",{"$f":"RangeHTML(B23)","v":"<p>Beispiel 21</p>"}]
[123264,"Beispiel 22",{"$f":"RangeHTML(B24)","v":"<p>Beispiel 22</p>"}]
[123265,"Beispiel 23",{"$f":"RangeHTML(B25)","v":"<p>Beispiel 23</p>"}]
[123266,"Beispiel 24",{"$f":"RangeHTML(B26)","v":"<p>Beispiel 24</p>"}]
[123267,"Beispiel 25",{"$f":"RangeHTML(B27)","v":"<p>Beispiel 25</p>"}]
[123268,"Beispiel 26",{"$f":"RangeHTML(B28)","v":"<p>Beispiel 26</p>"}]
[123269,"Beispiel 27",{"$f":"RangeHTML(B29)","v":"<p>Beispiel 27</p>"}]
[123270,"Beispiel 28",{"$f":"RangeHTML(B30)","v":"<p>Beispiel 28</p>"}]
[123271,"Beispiel 29",{"$f":"RangeHTML(B31)","v":"<p>Beispiel 29</p>"}]
[123272,"Beispiel 30",{"$f":"RangeHTML(B32)","v":"<p>Beispiel 30</p>"}]
[123273,"Beispiel 31",{"$f":"RangeHTML(B33)","v":"<p>Beispiel 31</p>"}]
[123274,"Beispiel 32",{"$f":"RangeHTML(B34)","v":"<p>Beispiel 32</p>"}]
[123275,"Beispiel 33",{"$f":"RangeHTML(B35)","v":"<p>Beispiel 33</p>"}]
[123276,"Beispiel 34",{"$f":"RangeHTML(B36)","v":"<p>Beispiel 34</p>"}]
[123277,"Beispiel 35",{"$f":"RangeHTML(B37)","v":"<p>Beispiel 35</p>"}]
[123278,"Beispiel 36",{"$f":"RangeHTML(B38)","v":"<p>Beispiel 36</p>"}]
[123279,"Beispiel 37",{"$f":"RangeHTML(B39)","v":"<p>Beispiel 37</p>"}]
[123280,"Beispiel 38",{"$f":"RangeHTML(B40)","v":"<p>Beispiel 38</p>"}]
[123281,"Beispiel 39",{"$f":"RangeHTML(B41)","v":"<p>Beispiel 39</p>"}]
[123282,"Beispiel 40",{"$f":"RangeHTML(B42)","v":"<p>Beispiel 40</p>"}]
[123283,"Beispiel 41",{"$f":"RangeHTML(B43)","v":"<p>Beispiel 41</p>"}]
[123284,"Beispiel 42",{"$f":"RangeHTML(B44)","v":"<p>Beispiel 42</p>"}]
[123285,"Beispiel 43",{"$f":"RangeHTML(B45)","v":"<p>Beispiel 43</p>"}]
[123286,"Beispiel 44",{"$f":"RangeHTML(B46)","v":"<p>Beispiel 44</p>"}]
[123287,"Beispiel 45",{"$f":"RangeHTML(B47)","v":"<p>Beispiel 45</p>"}]
[123288,"Beispiel 46",{"$f":"RangeHTML(B48)","v":"<p>Beispiel 46</p>"}]
[123289,"Beispiel 47",{"$f":"RangeHTML(B49)","v":"<p>Beispiel 47</p>"}]
[123290,"Beispiel 48",{"$f":"RangeHTML(B50)","v":"<p>Beispiel 48</p>"}]
[123291,"Beispiel 49",{"$f":"RangeHTML(B51)","v":"<p>Beispiel 49</p>"}]
[123292,"Beispiel 50",{"$f":"RangeHTML(B52)","v":"<p>Beispiel 50</p>"}]
[123293,"Beispiel 51",{"$f":"RangeHTML(B53)","v":"<p>Beispiel 51</p>"}]
[123294,"Beispiel 52",{"$f":"RangeHTML(B54)","v":"<p>Beispiel 52</p>"}]
[123295,"Beispiel 53",{"$f":"RangeHTML(B55)","v":"<p>Beispiel 53</p>"}]
[123296,"Beispiel 54",{"$f":"RangeHTML(B56)","v":"<p>Beispiel 54</p>"}]
[123297,"Beispiel 55",{"$f":"RangeHTML(B57)","v":"<p>Beispiel 55</p>"}]
[123298,"Beispiel 56",{"$f":"RangeHTML(B58)","v":"<p>Beispiel 56</p>"}]
[123299,"Beispiel 57",{"$f":"RangeHTML(B59)","v":"<p>Beispiel 57</p>"}]
[123300,"Beispiel 58",{"$f":"RangeHTML(B60)","v":"<p>Beispiel 58</p>"}]

{"sheet":"Tabelle2","index":1,"n_rows":0,"n_cols":0,"rows_kept":0,"cut":false,"hidden":false,"merged":[]}

{"sheet":"Tabelle3","index":2,"n_rows":0,"n_cols":0,"rows_kept":0,"cut":false,"hidden":false,"merged":[]}